{"text_format":"1","workbook":"xlsx","n_sheets":10,"sheets":["Originál","Sumár","sklad","1","2","3","4","5","6","7"],"not_rendered":{"charts":0,"images":0,"macros":1,"external_links":0,"defined_names":0,"comments":0,"pivot_tables":0},"unopened":[],"bounds":{"document_bytes":16777216,"sheet_cells":100000,"rows_first":2000,"rows_last":500,"rows_between":2000,"halvings":0,"cell_chars":16384,"cell_head_chars":4096},"cells_cut":0,"cells_raw":0,"read":"whole","date_system":"1900"}

{"sheet":"Originál","index":0,"n_rows":92,"n_cols":17,"rows_kept":92,"cut":false,"hidden":false,"merged":[[89,6,89,7],[49,16,50,16],[84,6,84,7],[85,6,85,7],[86,6,86,7],[87,6,87,7],[49,8,50,8],[49,12,50,12],[49,13,50,13],[49,14,50,14],[49,15,50,15],[83,6,83,7],[49,6,50,6],[0,12,0,16],[3,6,4,6],[3,7,4,7],[3,8,4,8],[3,12,4,12],[3,13,4,13],[3,14,4,14],[3,15,4,15],[3,16,4,16],[3,3,4,3],[3,4,4,4],[3,5,4,5],[49,7,50,7],[0,2,0,8],[47,1,47,2],[49,1,50,1],[49,2,50,2],[3,1,4,1],[3,2,4,2],[49,3,50,3],[49,4,50,4],[49,5,50,5]]}
[null,null,"Vyučtovanie výčapu",null,null,null,null,null,null,null,null,null,"Denný sumár"]
[]
[]
[null,"P.Č.","Názov  tovaru","Poč. stav","Príjem","Predané","Zostatok","Cena €","Suma celkom €",null,null,null,"Nákup","Predaj","Tržba","Zisk","Zisk po zdanení"]
[]
[null,null,"aaaaaaaaaaaaa",null,null,null,45,null,15,null,null,null,null,{"$f":"H6","v":0},{"$f":"G6*H6","v":0},{"$f":"(N6-M6)*G6","v":0},{"$f":"P6*0.8","v":0}]
[null,null,"ssssssssss",null,null,null,45,null,15,null,null,null,null,{"$f":"H7","v":0},{"$f":"G7*H7","v":0},{"$f":"(N7-M7)*G7","v":0},{"$f":"P7*0.8","v":0}]
[null,null,"xxxxxxxxxxxxx",null,null,null,45,null,15,null,null,null,null,0,0,0,0]
[null,null,"eeeeeeeeeeeeee",null,null,null,45,null,15,null,null,null,null,0,0,0,0]
[null,null,"wwwwwwwwwww",null,null,null,45,null,15,null,null,null,null,0,0,0,0]
[null,null,null,null,null,null,{"$f":"D11+E11-F11","v":0},null,{"$f":"G11*H11","v":0},null,null,null,null,0,0,0,0]
[null,null,null,null,null,null,0,null,0,null,null,null,null,0,0,0,0]
[null,null,null,null,null,null,0,null,0,null,null,null,null,0,0,0,0]
[null,null,null,null,null,null,0,null,0,null,null,null,null,0,0,0,0]
[null,null,null,null,null,null,0,null,0,null,null,null,null,0,0,0,0]
[null,null,null,null,null,null,0,null,0,null,null,null,null,0,0,0,0]
[null,null,null,null,null,null,0,null,0,null,null,null,null,0,0,0,0]
[null,null,null,null,null,null,0,null,0,null,null,null,null,0,0,0,0]
[null,null,null,null,null,null,0,null,0,null,null,null,null,0,0,0,0]
[null,null,null,null,null,null,0,null,0,null,null,null,null,0,0,0,0]
[null,null,null,null,null,null,0,null,0,null,null,null,null,0,0,0,0]
[null,null,null,null,null,null,0,null,0,null,null,null,null,0,0,0,0]
[null,null,null,null,null,null,0,null,0,null,null,null,null,0,0,0,0]
[null,null,null,null,null,null,0,null,0,null,null,null,null,0,0,0,0]
[null,null,null,null,null,null,0,null,0,null,null,null,null,0,0,0,0]
[null,null,null,null,null,null,0,null,0,null,null,null,null,0,0,0,0]
[null,null,null,null,null,null,0,null,0,null,null,null,null,0,0,0,0]
[null,null,null,null,null,null,0,null,0,null,null,null,null,0,0,0,0]
[null,null,null,null,null,null,0,null,0,null,null,null,null,0,0,0,0]
[null,null,null,null,null,null,0,null,0,null,null,null,null,0,0,0,0]
[null,null,null,null,null,null,0,null,0,null,null,null,null,0,0,0,0]
[null,null,null,null,null,null,0,null,0,null,null,null,null,0,0,0,0]
[null,null,null,null,null,null,0,null,0,null,null,null,null,0,0,0,0]
[null,null,null,null,null,null,0,null,0,null,null,null,null,0,0,0,0]
[null,null,null,null,null,null,0,null,0,null,null,null,null,0,0,0,0]
[null,null,null,null,null,null,0,null,0,null,null,null,null,0,0,0,0]
[null,null,null,null,null,null,0,null,0,null,null,null,null,0,0,0,0]
[null,null,null,null,null,null,0,null,0,null,null,null,null,0,0,0,0]
[null,null,null,null,null,null,0,null,0,null,null,null,null,0,0,0,0]
[null,null,null,null,null,null,0,null,0,null,null,null,null,0,0,0,0]
[null,null,null,null,null,null,0,null,0,null,null,null,null,0,0,0,0]
[null,null,null,null,null,null,0,null,0,null,null,null,null,0,0,0,0]
[null,null,null,null,null,null,0,null,0,null,null,null,null,0,0,0,0]
[null,null,null,null,null,null,null,"Celkom:",{"$f":"SUM(I6:I43)","v":75},null,null,null,null,null,"Celkom:",{"$f":"SUM(P6:P43)","v":0},{"$f":"SUM(Q6:Q43)","v":0}]
[]
[null,"dňa:",{"$f":"TODAY()","v":"2017-02-03"}]
[]
[null,{"$f":"B2","v":0},null,null,null,null,{"$f":"G2","v":0}]
[]
[null,"P.Č.","Názov  tovaru","Poč. stav","Príjem","Predané","Zostatok","Cena €","Suma celkom €",null,null,null,"Nákup","Predaj","Tržba","Zisk","Zisk po zdanení"]
[]
[null,null,null,null,null,null,{"$f":"D52+E52-F52","v":0},null,{"$f":"G52*H52","v":0},null,null,null,null,{"$f":"H52","v":0},{"$f":"G52*H52","v":0},{"$f":"(N52-M52)*G52","v":0},{"$f":"P52*0.8","v":0}]
[null,null,null,null,null,null,{"$f":"D53+E53-F53","v":0},null,{"$f":"G53*H53","v":0},null,null,null,null,{"$f":"H53","v":0},{"$f":"G53*H53","v":0},{"$f":"(N53-M53)*G53","v":0},{"$f":"P53*0.8","v":0}]
[null,null,null,null,null,null,0,null,0,null,null,null,null,0,0,0,0]
[null,null,null,null,null,null,0,null,0,null,null,null,null,0,0,0,0]
[null,null,null,null,null,null,0,null,0,null,null,null,null,0,0,0,0]
[null,null,null,null,null,null,0,null,0,null,null,null,null,0,0,0,0]
[null,null,null,null,null,null,0,null,0,null,null,null,null,0,0,0,0]
[null,null,null,null,null,null,0,null,0,null,null,null,null,0,0,0,0]
[null,null,null,null,null,null,0,null,0,null,null,null,null,0,0,0,0]
[null,null,null,null,null,null,0,null,0,null,null,null,null,0,0,0,0]
[null,null,null,null,null,null,0,null,0,null,null,null,null,0,0,0,0]
[null,null,null,null,null,null,0,null,0,null,null,null,null,0,0,0,0]
[null,null,null,null,null,null,0,null,0,null,null,null,null,0,0,0,0]
[null,null,null,null,null,null,0,null,0,null,null,null,null,0,0,0,0]
[null,null,null,null,null,null,0,null,0,null,null,null,null,0,0,0,0]
[null,null,null,null,null,null,0,null,0,null,null,null,null,0,0,0,0]
[null,null,null,null,null,null,0,null,0,null,null,null,null,0,0,0,0]
[null,null,null,null,null,null,0,null,0,null,null,null,null,0,0,0,0]
[null,null,null,null,null,null,0,null,0,null,null,null,null,0,0,0,0]
[null,null,null,null,null,null,0,null,0,null,null,null,null,0,0,0,0]
[null,null,null,null,null,null,0,null,0,null,null,null,null,0,0,0,0]
[null,null,null,null,null,null,0,null,0,null,null,null,null,0,0,0,0]
[null,null,null,null,null,null,0,null,0,null,null,null,null,0,0,0,0]
[null,null,null,null,null,null,0,null,0,null,null,null,null,0,0,0,0]
[null,null,null,null,null,null,0,null,0,null,null,null,null,0,0,0,0]
[null,null,null,null,null,null,0,null,0,null,null,null,null,0,0,0,0]
[null,null,null,null,null,null,0,null,0,null,null,null,null,0,0,0,0]
[null,null,null,null,null,null,0,null,0,null,null,null,null,0,0,0,0]
[null,null,null,null,null,null,0,null,0,null,null,null,null,0,0,0,0]
[null,null,null,null,null,null,null,"Celkom:",{"$f":"SUM(I52:I80)","v":0},null,null,null,null,null,"Celkom:",{"$f":"SUM(P52:P80)","v":0},{"$f":"SUM(Q52:Q80)","v":0}]
[]
[]
[null,null,null,null,null,null,"Strana 1:",null,{"$f":"I44","v":75}]
[null,null,null,null,null,null,"Strana 2:",null,{"$f":"I81","v":0}]
[null,null,null,null,null,null,"Stávková:"]
[null,null,null,null,null,null,"Refil:"]
[null,null,null,null,null,null,"Výdavky:"]
[]
[null,null,null,null,null,null,"Celkom spolu:",null,{"$f":"SUM(I84:I88)","v":75}]
[]
[null,"dňa:",{"$f":"TODAY()","v":"2017-02-03"}]

{"sheet":"Sumár","index":1,"n_rows":92,"n_cols":17,"rows_kept":92,"cut":false,"hidden":false,"merged":[[47,1,47,2],[0,2,0,8],[0,12,0,16],[3,1,4,1],[3,2,4,2],[3,3,4,3],[3,4,4,4],[3,5,4,5],[3,6,4,6],[3,7,4,7],[3,8,4,8],[3,12,4,12],[3,13,4,13],[3,14,4,14],[3,15,4,15],[3,16,4,16],[49,1,50,1],[49,2,50,2],[49,3,50,3],[49,4,50,4],[49,5,50,5],[89,6,89,7],[49,16,50,16],[83,6,83,7],[84,6,84,7],[85,6,85,7],[86,6,86,7],[87,6,87,7],[49,7,50,7],[49,8,50,8],[49,12,50,12],[49,13,50,13],[49,14,50,14],[49,15,50,15],[49,6,50,6]]}
[null,null,"Sumár",null,null,null,null,null,null,null,null,null,"Denný sumár"]
[]
[]
[null,"P.Č.","Názov  tovaru","Poč. stav","Príjem","Predané","Zostatok","Cena €","Suma celkom €",null,null,null,"Nákup","Predaj","Tržba","Zisk","Zisk po zdanení"]
[]
[null,null,null,null,null,null,156,0,{"$f":"G6*H6","v":0},null,null,null,null,{"$f":"H6","v":0},{"$f":"G6*H6","v":0},{"$f":"(N6-M6)*G6","v":0},{"$f":"P6*0.8","v":0}]
[null,null,null,null,null,null,156,0,{"$f":"G7*H7","v":0},null,null,null,null,{"$f":"H7","v":0},{"$f":"G7*H7","v":0},{"$f":"(N7-M7)*G7","v":0},{"$f":"P7*0.8","v":0}]
[null,null,null,null,null,null,156,0,0,null,null,null,null,0,0,0,0]
[null,null,null,null,null,null,156,0,0,null,null,null,null,0,0,0,0]
[null,null,null,null,null,null,156,0,0,null,null,null,null,0,0,0,0]
[null,null,null,null,null,null,0,0,0,null,null,null,null,0,0,0,0]
[null,null,null,null,null,null,0,0,0,null,null,null,null,0,0,0,0]
[null,null,null,null,null,null,0,0,0,null,null,null,null,0,0,0,0]
[null,null,null,null,null,null,0,0,0,null,null,null,null,0,0,0,0]
[null,null,null,null,null,null,0,0,0,null,null,null,null,0,0,0,0]
[null,null,null,null,null,null,0,0,0,null,null,null,null,0,0,0,0]
[null,null,null,null,null,null,0,0,0,null,null,null,null,0,0,0,0]
[null,null,null,null,null,null,0,0,0,null,null,null,null,0,0,0,0]
[null,null,null,null,null,null,0,0,0,null,null,null,null,0,0,0,0]
[null,null,null,null,null,null,0,0,0,null,null,null,null,0,0,0,0]
[null,null,null,null,null,null,0,0,0,null,null,null,null,0,0,0,0]
[null,null,null,null,null,null,0,0,0,null,null,null,null,0,0,0,0]
[null,null,null,null,null,null,0,0,0,null,null,null,null,0,0,0,0]
[null,null,null,null,null,null,0,0,0,null,null,null,null,0,0,0,0]
[null,null,null,null,null,null,0,0,0,null,null,null,null,0,0,0,0]
[null,null,null,null,null,null,0,0,0,null,null,null,null,0,0,0,0]
[null,null,null,null,null,null,0,0,0,null,null,null,null,0,0,0,0]
[null,null,null,null,null,null,0,0,0,null,null,null,null,0,0,0,0]
[null,null,null,null,null,null,0,0,0,null,null,null,null,0,0,0,0]
[null,null,null,null,null,null,0,0,0,null,null,null,null,0,0,0,0]
[null,null,null,null,null,null,0,0,0,null,null,null,null,0,0,0,0]
[null,null,null,null,null,null,0,0,0,null,null,null,null,0,0,0,0]
[null,null,null,null,null,null,0,0,0,null,null,null,null,0,0,0,0]
[null,null,null,null,null,null,0,0,0,null,null,null,null,0,0,0,0]
[null,null,null,null,null,null,0,0,0,null,null,null,null,0,0,0,0]
[null,null,null,null,null,null,0,0,0,null,null,null,null,0,0,0,0]
[null,null,null,null,null,null,0,0,0,null,null,null,null,0,0,0,0]
[null,null,null,null,null,null,0,0,0,null,null,null,null,0,0,0,0]
[null,null,null,null,null,null,0,0,0,null,null,null,null,0,0,0,0]
[null,null,null,null,null,null,0,0,0,null,null,null,null,0,0,0,0]
[null,null,null,null,null,null,0,0,0,null,null,null,null,0,0,0,0]
[null,null,null,null,null,null,0,0,0,null,null,null,null,0,0,0,0]
[null,null,null,null,null,null,0,0,0,null,null,null,null,0,0,0,0]
[null,null,null,null,null,null,null,"Celkom:",{"$f":"SUM(I6:I43)","v":0},null,null,null,null,null,"Celkom:",{"$f":"SUM(P6:P43)","v":0},{"$f":"SUM(Q6:Q43)","v":0}]
[]
[null,"dňa:",{"$f":"TODAY()","v":"2017-02-03"}]
[]
[null,{"$f":"B2","v":0},null,null,null,null,{"$f":"G2","v":0}]
[]
[null,"P.Č.","Názov  tovaru","Poč. stav","Príjem","Predané","Zostatok","Cena €","Suma celkom €",null,null,null,"Nákup","Predaj","Tržba","Zisk","Zisk po zdanení"]
[]
[null,null,null,null,null,null,0,0,{"$f":"G52*H52","v":0},null,null,null,null,{"$f":"H52","v":0},{"$f":"G52*H52","v":0},{"$f":"(N52-M52)*G52","v":0},{"$f":"P52*0.8","v":0}]
[null,null,null,null,null,null,0,0,{"$f":"G53*H53","v":0},null,null,null,null,{"$f":"H53","v":0},{"$f":"G53*H53","v":0},{"$f":"(N53-M53)*G53","v":0},{"$f":"P53*0.8","v":0}]
[null,null,null,null,null,null,0,0,0,null,null,null,null,0,0,0,0]
[null,null,null,null,null,null,0,0,0,null,null,null,null,0,0,0,0]
[null,null,null,null,null,null,0,0,0,null,null,null,null,0,0,0,0]
[null,null,null,null,null,null,0,0,0,null,null,null,null,0,0,0,0]
[null,null,null,null,null,null,0,0,0,null,null,null,null,0,0,0,0]
[null,null,null,null,null,null,0,0,0,null,null,null,null,0,0,0,0]
[null,null,null,null,null,null,0,0,0,null,null,null,null,0,0,0,0]
[null,null,null,null,null,null,0,0,0,null,null,null,null,0,0,0,0]
[null,null,null,null,null,null,0,0,0,null,null,null,null,0,0,0,0]
[null,null,null,null,null,null,0,0,0,null,null,null,null,0,0,0,0]
[null,null,null,null,null,null,0,0,0,null,null,null,null,0,0,0,0]
[null,null,null,null,null,null,0,0,0,null,null,null,null,0,0,0,0]
[null,null,null,null,null,null,0,0,0,null,null,null,null,0,0,0,0]
[null,null,null,null,null,null,0,0,0,null,null,null,null,0,0,0,0]
[null,null,null,null,null,null,0,0,0,null,null,null,null,0,0,0,0]
[null,null,null,null,null,null,0,0,0,null,null,null,null,0,0,0,0]
[null,null,null,null,null,null,0,0,0,null,null,null,null,0,0,0,0]
[null,null,null,null,null,null,0,0,0,null,null,null,null,0,0,0,0]
[null,null,null,null,null,null,0,0,0,null,null,null,null,0,0,0,0]
[null,null,null,null,null,null,0,0,0,null,null,null,null,0,0,0,0]
[null,null,null,null,null,null,0,0,0,null,null,null,null,0,0,0,0]
[null,null,null,null,null,null,0,0,0,null,null,null,null,0,0,0,0]
[null,null,null,null,null,null,0,0,0,null,null,null,null,0,0,0,0]
[null,null,null,null,null,null,0,0,0,null,null,null,null,0,0,0,0]
[null,null,null,null,null,null,0,0,0,null,null,null,null,0,0,0,0]
[null,null,null,null,null,null,0,0,0,null,null,null,null,0,0,0,0]
[null,null,null,null,null,null,0,0,0,null,null,null,null,0,0,0,0]
[null,null,null,null,null,null,null,"Celkom:",{"$f":"SUM(I52:I80)","v":0},null,null,null,null,null,"Celkom:",{"$f":"SUM(P52:P80)","v":0},{"$f":"SUM(Q52:Q80)","v":0}]
[]
[]
[null,null,null,null,null,null,"Strana 1:",null,{"$f":"I44","v":0}]
[null,null,null,null,null,null,"Strana 2:",null,{"$f":"I81","v":0}]
[null,null,null,null,null,null,"Stávková:"]
[null,null,null,null,null,null,"Refil:"]
[null,null,null,null,null,null,"Výdavky:"]
[]
[null,null,null,null,null,null,"Celkom spolu:",null,{"$f":"SUM(I84:I88)","v":0}]
[]
[null,"dňa:",{"$f":"TODAY()","v":"2017-02-03"}]

{"sheet":"sklad","index":2,"n_rows":10,"n_cols":4,"rows_kept":10,"cut":false,"hidden":false,"merged":[]}
[]
[]
[]
[]
[]
[null,"aaaaaaaaaaaaa",45,15]
[null,"ssssssssss",45,15]
[null,"xxxxxxxxxxxxx",45,15]
[null,"eeeeeeeeeeeeee",45,15]
[null,"wwwwwwwwwww",45,15]

{"sheet":"1","index":3,"n_rows":92,"n_cols":17,"rows_kept":92,"cut":false,"hidden":false,"merged":[[89,6,89,7],[49,16,50,16],[83,6,83,7],[84,6,84,7],[85,6,85,7],[86,6,86,7],[87,6,87,7],[49,7,50,7],[49,8,50,8],[49,12,50,12],[49,13,50,13],[49,14,50,14],[49,15,50,15],[49,6,50,6],[49,1,50,1],[49,2,50,2],[49,3,50,3],[49,4,50,4],[49,5,50,5],[47,1,47,2],[0,2,0,8],[0,12,0,16],[3,1,4,1],[3,2,4,2],[3,3,4,3],[3,4,4,4],[3,5,4,5],[3,6,4,6],[3,7,4,7],[3,8,4,8],[3,12,4,12],[3,13,4,13],[3,14,4,14],[3,15,4,15],[3,16,4,16]]}
[null,null,"Vyučtovanie výčapu",null,null,null,null,null,null,null,null,null,"Denný sumár"]
[]
[]
[null,"P.Č.","Názov  tovaru","Poč. stav","Príjem","Predané","Zostatok","Cena €","Suma celkom €",null,null,null,"Nákup","Predaj","Tržba","Zisk","Zisk po zdanení"]
[]
[null,null,"aaaaaaaaaaaaa",45,null,null,8,null,15,null,null,null,null,{"$f":"H6","v":0},{"$f":"G6*H6","v":0},{"$f":"(N6-M6)*G6","v":0},{"$f":"P6*0.8","v":0}]
[null,null,"ssssssssss",45,null,null,8,null,15,null,null,null,null,{"$f":"H7","v":0},{"$f":"G7*H7","v":0},{"$f":"(N7-M7)*G7","v":0},{"$f":"P7*0.8","v":0}]
[null,null,"xxxxxxxxxxxxx",45,null,null,8,null,15,null,null,null,null,0,0,0,0]
[null,null,"eeeeeeeeeeeeee",45,null,null,8,null,15,null,null,null,null,0,0,0,0]
[null,null,"wwwwwwwwwww",45,null,null,8,null,15,null,null,null,null,0,0,0,0]
[null,null,null,0,null,null,{"$f":"D11+E11-F11","v":0},null,{"$f":"G11*H11","v":0},null,null,null,null,0,0,0,0]
[null,null,null,0,null,null,0,null,0,null,null,null,null,0,0,0,0]
[null,null,null,0,null,null,0,null,0,null,null,null,null,0,0,0,0]
[null,null,null,0,null,null,0,null,0,null,null,null,null,0,0,0,0]
[null,null,null,0,null,null,0,null,0,null,null,null,null,0,0,0,0]
[null,null,null,0,null,null,0,null,0,null,null,null,null,0,0,0,0]
[null,null,null,0,null,null,0,null,0,null,null,null,null,0,0,0,0]
[null,null,null,0,null,null,0,null,0,null,null,null,null,0,0,0,0]
[null,null,null,0,null,null,0,null,0,null,null,null,null,0,0,0,0]
[null,null,null,0,null,null,0,null,0,null,null,null,null,0,0,0,0]
[null,null,null,0,null,null,0,null,0,null,null,null,null,0,0,0,0]
[null,null,null,0,null,null,0,null,0,null,null,null,null,0,0,0,0]
[null,null,null,0,null,null,0,null,0,null,null,null,null,0,0,0,0]
[null,null,null,0,null,null,0,null,0,null,null,null,null,0,0,0,0]
[null,null,null,0,null,null,0,null,0,null,null,null,null,0,0,0,0]
[null,null,null,0,null,null,0,null,0,null,null,null,null,0,0,0,0]
[null,null,null,0,null,null,0,null,0,null,null,null,null,0,0,0,0]
[null,null,null,0,null,null,0,null,0,null,null,null,null,0,0,0,0]
[null,null,null,0,null,null,0,null,0,null,null,null,null,0,0,0,0]
[null,null,null,0,null,null,0,null,0,null,null,null,null,0,0,0,0]
[null,null,null,0,null,null,0,null,0,null,null,null,null,0,0,0,0]
[null,null,null,0,null,null,0,null,0,null,null,null,null,0,0,0,0]
[null,null,null,0,null,null,0,null,0,null,null,null,null,0,0,0,0]
[null,null,null,0,null,null,0,null,0,null,null,null,null,0,0,0,0]
[null,null,null,0,null,null,0,null,0,null,null,null,null,0,0,0,0]
[null,null,null,0,null,null,0,null,0,null,null,null,null,0,0,0,0]
[null,null,null,0,null,null,0,null,0,null,null,null,null,0,0,0,0]
[null,null,null,0,null,null,0,null,0,null,null,null,null,0,0,0,0]
[null,null,null,0,null,null,0,null,0,null,null,null,null,0,0,0,0]
[null,null,null,0,null,null,0,null,0,null,null,null,null,0,0,0,0]
[null,null,null,0,null,null,0,null,0,null,null,null,null,0,0,0,0]
[null,null,null,0,null,null,0,null,0,null,null,null,null,0,0,0,0]
[null,null,null,0,null,null,0,null,0,null,null,null,null,0,0,0,0]
[null,null,null,null,null,null,null,"Celkom:",{"$f":"SUM(I6:I43)","v":75},null,null,null,null,null,"Celkom:",{"$f":"SUM(P6:P43)","v":0},{"$f":"SUM(Q6:Q43)","v":0}]
[]
[null,"dňa:",{"$f":"TODAY()","v":"2017-02-03"}]
[]
[null,{"$f":"B2","v":0},null,null,null,null,{"$f":"G2","v":0}]
[]
[null,"P.Č.","Názov  tovaru","Poč. stav","Príjem","Predané","Zostatok","Cena €","Suma celkom €",null,null,null,"Nákup","Predaj","Tržba","Zisk","Zisk po zdanení"]
[]
[null,null,null,0,null,null,{"$f":"D52+E52-F52","v":0},null,{"$f":"G52*H52","v":0},null,null,null,null,{"$f":"H52","v":0},{"$f":"G52*H52","v":0},{"$f":"(N52-M52)*G52","v":0},{"$f":"P52*0.8","v":0}]
[null,null,null,0,null,null,{"$f":"D53+E53-F53","v":0},null,{"$f":"G53*H53","v":0},null,null,null,null,{"$f":"H53","v":0},{"$f":"G53*H53","v":0},{"$f":"(N53-M53)*G53","v":0},{"$f":"P53*0.8","v":0}]
[null,null,null,0,null,null,0,null,0,null,null,null,null,0,0,0,0]
[null,null,null,0,null,null,0,null,0,null,null,null,null,0,0,0,0]
[null,null,null,0,null,null,0,null,0,null,null,null,null,0,0,0,0]
[null,null,null,0,null,null,0,null,0,null,null,null,null,0,0,0,0]
[null,null,null,0,null,null,0,null,0,null,null,null,null,0,0,0,0]
[null,null,null,0,null,null,0,null,0,null,null,null,null,0,0,0,0]
[null,null,null,0,null,null,0,null,0,null,null,null,null,0,0,0,0]
[null,null,null,0,null,null,0,null,0,null,null,null,null,0,0,0,0]
[null,null,null,0,null,null,0,null,0,null,null,null,null,0,0,0,0]
[null,null,null,0,null,null,0,null,0,null,null,null,null,0,0,0,0]
[null,null,null,0,null,null,0,null,0,null,null,null,null,0,0,0,0]
[null,null,null,0,null,null,0,null,0,null,null,null,null,0,0,0,0]
[null,null,null,0,null,null,0,null,0,null,null,null,null,0,0,0,0]
[null,null,null,0,null,null,0,null,0,null,null,null,null,0,0,0,0]
[null,null,null,0,null,null,0,null,0,null,null,null,null,0,0,0,0]
[null,null,null,0,null,null,0,null,0,null,null,null,null,0,0,0,0]
[null,null,null,0,null,null,0,null,0,null,null,null,null,0,0,0,0]
[null,null,null,0,null,null,0,null,0,null,null,null,null,0,0,0,0]
[null,null,null,0,null,null,0,null,0,null,null,null,null,0,0,0,0]
[null,null,null,0,null,null,0,null,0,null,null,null,null,0,0,0,0]
[null,null,null,0,null,null,0,null,0,null,null,null,null,0,0,0,0]
[null,null,null,0,null,null,0,null,0,null,null,null,null,0,0,0,0]
[null,null,null,0,null,null,0,null,0,null,null,null,null,0,0,0,0]
[null,null,null,0,null,null,0,null,0,null,null,null,null,0,0,0,0]
[null,null,null,0,null,null,0,null,0,null,null,null,null,0,0,0,0]
[null,null,null,0,null,null,0,null,0,null,null,null,null,0,0,0,0]
[null,null,null,0,null,null,0,null,0,null,null,null,null,0,0,0,0]
[null,null,null,null,null,null,null,"Celkom:",{"$f":"SUM(I52:I80)","v":0},null,null,null,null,null,"Celkom:",{"$f":"SUM(P52:P80)","v":0},{"$f":"SUM(Q52:Q80)","v":0}]
[]
[]
[null,null,null,null,null,null,"Strana 1:",null,{"$f":"I44","v":75}]
[null,null,null,null,null,null,"Strana 2:",null,{"$f":"I81","v":0}]
[null,null,null,null,null,null,"Stávková:"]
[null,null,null,null,null,null,"Refil:"]
[null,null,null,null,null,null,"Výdavky:"]
[]
[null,null,null,null,null,null,"Celkom spolu:",null,{"$f":"SUM(I84:I88)","v":75}]
[]
[null,"dňa:",{"$f":"TODAY()","v":"2017-02-03"}]

{"sheet":"2","index":4,"n_rows":92,"n_cols":17,"rows_kept":92,"cut":false,"hidden":false,"merged":[[89,6,89,7],[49,16,50,16],[83,6,83,7],[84,6,84,7],[85,6,85,7],[86,6,86,7],[87,6,87,7],[49,7,50,7],[49,8,50,8],[49,12,50,12],[49,13,50,13],[49,14,50,14],[49,15,50,15],[49,6,50,6],[49,1,50,1],[49,2,50,2],[49,3,50,3],[49,4,50,4],[49,5,50,5],[47,1,47,2],[0,2,0,8],[0,12,0,16],[3,1,4,1],[3,2,4,2],[3,3,4,3],[3,4,4,4],[3,5,4,5],[3,6,4,6],[3,7,4,7],[3,8,4,8],[3,12,4,12],[3,13,4,13],[3,14,4,14],[3,15,4,15],[3,16,4,16]]}
[null,null,"Vyučtovanie výčapu",null,null,null,null,null,null,null,null,null,"Denný sumár"]
[]
[]
[null,"P.Č.","Názov  tovaru","Poč. stav","Príjem","Predané","Zostatok","Cena €","Suma celkom €",null,null,null,"Nákup","Predaj","Tržba","Zisk","Zisk po zdanení"]
[]
[null,null,"aaaaaaaaaaaaa",45,null,null,45,null,15,null,null,null,null,{"$f":"H6","v":0},{"$f":"G6*H6","v":0},{"$f":"(N6-M6)*G6","v":0},{"$f":"P6*0.8","v":0}]
[null,null,"ssssssssss",45,null,null,45,null,15,null,null,null,null,{"$f":"H7","v":0},{"$f":"G7*H7","v":0},{"$f":"(N7-M7)*G7","v":0},{"$f":"P7*0.8","v":0}]
[null,null,"xxxxxxxxxxxxx",45,null,null,45,null,15,null,null,null,null,0,0,0,0]
[null,null,"eeeeeeeeeeeeee",45,null,null,45,null,15,null,null,null,null,0,0,0,0]
[null,null,"wwwwwwwwwww",45,null,null,45,null,15,null,null,null,null,0,0,0,0]
[null,null,null,0,null,null,{"$f":"D11+E11-F11","v":0},null,{"$f":"G11*H11","v":0},null,null,null,null,0,0,0,0]
[null,null,null,0,null,null,0,null,0,null,null,null,null,0,0,0,0]
[null,null,null,0,null,null,0,null,0,null,null,null,null,0,0,0,0]
[null,null,null,0,null,null,0,null,0,null,null,null,null,0,0,0,0]
[null,null,null,0,null,null,0,null,0,null,null,null,null,0,0,0,0]
[null,null,null,0,null,null,0,null,0,null,null,null,null,0,0,0,0]
[null,null,null,0,null,null,0,null,0,null,null,null,null,0,0,0,0]
[null,null,null,0,null,null,0,null,0,null,null,null,null,0,0,0,0]
[null,null,null,0,null,null,0,null,0,null,null,null,null,0,0,0,0]
[null,null,null,0,null,null,0,null,0,null,null,null,null,0,0,0,0]
[null,null,null,0,null,null,0,null,0,null,null,null,null,0,0,0,0]
[null,null,null,0,null,null,0,null,0,null,null,null,null,0,0,0,0]
[null,null,null,0,null,null,0,null,0,null,null,null,null,0,0,0,0]
[null,null,null,0,null,null,0,null,0,null,null,null,null,0,0,0,0]
[null,null,null,0,null,null,0,null,0,null,null,null,null,0,0,0,0]
[null,null,null,0,null,null,0,null,0,null,null,null,null,0,0,0,0]
[null,null,null,0,null,null,0,null,0,null,null,null,null,0,0,0,0]
[null,null,null,0,null,null,0,null,0,null,null,null,null,0,0,0,0]
[null,null,null,0,null,null,0,null,0,null,null,null,null,0,0,0,0]
[null,null,null,0,null,null,0,null,0,null,null,null,null,0,0,0,0]
[null,null,null,0,null,null,0,null,0,null,null,null,null,0,0,0,0]
[null,null,null,0,null,null,0,null,0,null,null,null,null,0,0,0,0]
[null,null,null,0,null,null,0,null,0,null,null,null,null,0,0,0,0]
[null,null,null,0,null,null,0,null,0,null,null,null,null,0,0,0,0]
[null,null,null,0,null,null,0,null,0,null,null,null,null,0,0,0,0]
[null,null,null,0,null,null,0,null,0,null,null,null,null,0,0,0,0]
[null,null,null,0,null,null,0,null,0,null,null,null,null,0,0,0,0]
[null,null,null,0,null,null,0,null,0,null,null,null,null,0,0,0,0]
[null,null,null,0,null,null,0,null,0,null,null,null,null,0,0,0,0]
[null,null,null,0,null,null,0,null,0,null,null,null,null,0,0,0,0]
[null,null,null,0,null,null,0,null,0,null,null,null,null,0,0,0,0]
[null,null,null,0,null,null,0,null,0,null,null,null,null,0,0,0,0]
[null,null,null,0,null,null,0,null,0,null,null,null,null,0,0,0,0]
[null,null,null,null,null,null,null,"Celkom:",{"$f":"SUM(I6:I43)","v":75},null,null,null,null,null,"Celkom:",{"$f":"SUM(P6:P43)","v":0},{"$f":"SUM(Q6:Q43)","v":0}]
[]
[null,"dňa:",{"$f":"TODAY()","v":"2017-02-03"}]
[]
[null,{"$f":"B2","v":0},null,null,null,null,{"$f":"G2","v":0}]
[]
[null,"P.Č.","Názov  tovaru","Poč. stav","Príjem","Predané","Zostatok","Cena €","Suma celkom €",null,null,null,"Nákup","Predaj","Tržba","Zisk","Zisk po zdanení"]
[]
[null,null,null,0,null,null,{"$f":"D52+E52-F52","v":0},null,{"$f":"G52*H52","v":0},null,null,null,null,{"$f":"H52","v":0},{"$f":"G52*H52","v":0},{"$f":"(N52-M52)*G52","v":0},{"$f":"P52*0.8","v":0}]
[null,null,null,0,null,null,{"$f":"D53+E53-F53","v":0},null,{"$f":"G53*H53","v":0},null,null,null,null,{"$f":"H53","v":0},{"$f":"G53*H53","v":0},{"$f":"(N53-M53)*G53","v":0},{"$f":"P53*0.8","v":0}]
[null,null,null,0,null,null,0,null,0,null,null,null,null,0,0,0,0]
[null,null,null,0,null,null,0,null,0,null,null,null,null,0,0,0,0]
[null,null,null,0,null,null,0,null,0,null,null,null,null,0,0,0,0]
[null,null,null,0,null,null,0,null,0,null,null,null,null,0,0,0,0]
[null,null,null,0,null,null,0,null,0,null,null,null,null,0,0,0,0]
[null,null,null,0,null,null,0,null,0,null,null,null,null,0,0,0,0]
[null,null,null,0,null,null,0,null,0,null,null,null,null,0,0,0,0]
[null,null,null,0,null,null,0,null,0,null,null,null,null,0,0,0,0]
[null,null,null,0,null,null,0,null,0,null,null,null,null,0,0,0,0]
[null,null,null,0,null,null,0,null,0,null,null,null,null,0,0,0,0]
[null,null,null,0,null,null,0,null,0,null,null,null,null,0,0,0,0]
[null,null,null,0,null,null,0,null,0,null,null,null,null,0,0,0,0]
[null,null,null,0,null,null,0,null,0,null,null,null,null,0,0,0,0]
[null,null,null,0,null,null,0,null,0,null,null,null,null,0,0,0,0]
[null,null,null,0,null,null,0,null,0,null,null,null,null,0,0,0,0]
[null,null,null,0,null,null,0,null,0,null,null,null,null,0,0,0,0]
[null,null,null,0,null,null,0,null,0,null,null,null,null,0,0,0,0]
[null,null,null,0,null,null,0,null,0,null,null,null,null,0,0,0,0]
[null,null,null,0,null,null,0,null,0,null,null,null,null,0,0,0,0]
[null,null,null,0,null,null,0,null,0,null,null,null,null,0,0,0,0]
[null,null,null,0,null,null,0,null,0,null,null,null,null,0,0,0,0]
[null,null,null,0,null,null,0,null,0,null,null,null,null,0,0,0,0]
[null,null,null,0,null,null,0,null,0,null,null,null,null,0,0,0,0]
[null,null,null,0,null,null,0,null,0,null,null,null,null,0,0,0,0]
[null,null,null,0,null,null,0,null,0,null,null,null,null,0,0,0,0]
[null,null,null,0,null,null,0,null,0,null,null,null,null,0,0,0,0]
[null,null,null,0,null,null,0,null,0,null,null,null,null,0,0,0,0]
[null,null,null,null,null,null,null,"Celkom:",{"$f":"SUM(I52:I80)","v":0},null,null,null,null,null,"Celkom:",{"$f":"SUM(P52:P80)","v":0},{"$f":"SUM(Q52:Q80)","v":0}]
[]
[]
[null,null,null,null,null,null,"Strana 1:",null,{"$f":"I44","v":75}]
[null,null,null,null,null,null,"Strana 2:",null,{"$f":"I81","v":0}]
[null,null,null,null,null,null,"Stávková:"]
[null,null,null,null,null,null,"Refil:"]
[null,null,null,null,null,null,"Výdavky:"]
[]
[null,null,null,null,null,null,"Celkom spolu:",null,{"$f":"SUM(I84:I88)","v":75}]
[]
[null,"dňa:",{"$f":"TODAY()","v":"2017-02-03"}]

{"sheet":"3","index":5,"n_rows":92,"n_cols":17,"rows_kept":92,"cut":false,"hidden":false,"merged":[[47,1,47,2],[0,2,0,8],[0,12,0,16],[3,1,4,1],[3,2,4,2],[3,3,4,3],[3,4,4,4],[3,5,4,5],[3,6,4,6],[3,7,4,7],[3,8,4,8],[3,12,4,12],[3,13,4,13],[3,14,4,14],[3,15,4,15],[3,16,4,16],[49,1,50,1],[49,2,50,2],[49,3,50,3],[49,4,50,4],[49,5,50,5],[89,6,89,7],[49,16,50,16],[83,6,83,7],[84,6,84,7],[85,6,85,7],[86,6,86,7],[87,6,87,7],[49,7,50,7],[49,8,50,8],[49,12,50,12],[49,13,50,13],[49,14,50,14],[49,15,50,15],[49,6,50,6]]}
[null,null,"Vyučtovanie výčapu",null,null,null,null,null,null,null,null,null,"Denný sumár"]
[]
[]
[null,"P.Č.","Názov  tovaru","Poč. stav","Príjem","Predané","Zostatok","Cena €","Suma celkom €",null,null,null,"Nákup","Predaj","Tržba","Zisk","Zisk po zdanení"]
[]
[null,null,"aaaaaaaaaaaaa",45,null,null,45,null,15,null,null,null,null,{"$f":"H6","v":0},{"$f":"G6*H6","v":0},{"$f":"(N6-M6)*G6","v":0},{"$f":"P6*0.8","v":0}]
[null,null,"ssssssssss",45,null,null,45,null,15,null,null,null,null,{"$f":"H7","v":0},{"$f":"G7*H7","v":0},{"$f":"(N7-M7)*G7","v":0},{"$f":"P7*0.8","v":0}]
[null,null,"xxxxxxxxxxxxx",45,null,null,45,null,15,null,null,null,null,0,0,0,0]
[null,null,"eeeeeeeeeeeeee",45,null,null,45,null,15,null,null,null,null,0,0,0,0]
[null,null,"wwwwwwwwwww",45,null,null,45,null,15,null,null,null,null,0,0,0,0]
[null,null,null,0,null,null,{"$f":"D11+E11-F11","v":0},null,{"$f":"G11*H11","v":0},null,null,null,null,0,0,0,0]
[null,null,null,0,null,null,0,null,0,null,null,null,null,0,0,0,0]
[null,null,null,0,null,null,0,null,0,null,null,null,null,0,0,0,0]
[null,null,null,0,null,null,0,null,0,null,null,null,null,0,0,0,0]
[null,null,null,0,null,null,0,null,0,null,null,null,null,0,0,0,0]
[null,null,null,0,null,null,0,null,0,null,null,null,null,0,0,0,0]
[null,null,null,0,null,null,0,null,0,null,null,null,null,0,0,0,0]
[null,null,null,0,null,null,0,null,0,null,null,null,null,0,0,0,0]
[null,null,null,0,null,null,0,null,0,null,null,null,null,0,0,0,0]
[null,null,null,0,null,null,0,null,0,null,null,null,null,0,0,0,0]
[null,null,null,0,null,null,0,null,0,null,null,null,null,0,0,0,0]
[null,null,null,0,null,null,0,null,0,null,null,null,null,0,0,0,0]
[null,null,null,0,null,null,0,null,0,null,null,null,null,0,0,0,0]
[null,null,null,0,null,null,0,null,0,null,null,null,null,0,0,0,0]
[null,null,null,0,null,null,0,null,0,null,null,null,null,0,0,0,0]
[null,null,null,0,null,null,0,null,0,null,null,null,null,0,0,0,0]
[null,null,null,0,null,null,0,null,0,null,null,null,null,0,0,0,0]
[null,null,null,0,null,null,0,null,0,null,null,null,null,0,0,0,0]
[null,null,null,0,null,null,0,null,0,null,null,null,null,0,0,0,0]
[null,null,null,0,null,null,0,null,0,null,null,null,null,0,0,0,0]
[null,null,null,0,null,null,0,null,0,null,null,null,null,0,0,0,0]
[null,null,null,0,null,null,0,null,0,null,null,null,null,0,0,0,0]
[null,null,null,0,null,null,0,null,0,null,null,null,null,0,0,0,0]
[null,null,null,0,null,null,0,null,0,null,null,null,null,0,0,0,0]
[null,null,null,0,null,null,0,null,0,null,null,null,null,0,0,0,0]
[null,null,null,0,null,null,0,null,0,null,null,null,null,0,0,0,0]
[null,null,null,0,null,null,0,null,0,null,null,null,null,0,0,0,0]
[null,null,null,0,null,null,0,null,0,null,null,null,null,0,0,0,0]
[null,null,null,0,null,null,0,null,0,null,null,null,null,0,0,0,0]
[null,null,null,0,null,null,0,null,0,null,null,null,null,0,0,0,0]
[null,null,null,0,null,null,0,null,0,null,null,null,null,0,0,0,0]
[null,null,null,0,null,null,0,null,0,null,null,null,null,0,0,0,0]
[null,null,null,0,null,null,0,null,0,null,null,null,null,0,0,0,0]
[null,null,null,null,null,null,null,"Celkom:",{"$f":"SUM(I6:I43)","v":75},null,null,null,null,null,"Celkom:",{"$f":"SUM(P6:P43)","v":0},{"$f":"SUM(Q6:Q43)","v":0}]
[]
[null,"dňa:",{"$f":"TODAY()","v":"2017-02-03"}]
[]
[null,{"$f":"B2","v":0},null,null,null,null,{"$f":"G2","v":0}]
[]
[null,"P.Č.","Názov  tovaru","Poč. stav","Príjem","Predané","Zostatok","Cena €","Suma celkom €",null,null,null,"Nákup","Predaj","Tržba","Zisk","Zisk po zdanení"]
[]
[null,null,null,0,null,null,{"$f":"D52+E52-F52","v":0},null,{"$f":"G52*H52","v":0},null,null,null,null,{"$f":"H52","v":0},{"$f":"G52*H52","v":0},{"$f":"(N52-M52)*G52","v":0},{"$f":"P52*0.8","v":0}]
[null,null,null,0,null,null,{"$f":"D53+E53-F53","v":0},null,{"$f":"G53*H53","v":0},null,null,null,null,{"$f":"H53","v":0},{"$f":"G53*H53","v":0},{"$f":"(N53-M53)*G53","v":0},{"$f":"P53*0.8","v":0}]
[null,null,null,0,null,null,0,null,0,null,null,null,null,0,0,0,0]
[null,null,null,0,null,null,0,null,0,null,null,null,null,0,0,0,0]
[null,null,null,0,null,null,0,null,0,null,null,null,null,0,0,0,0]
[null,null,null,0,null,null,0,null,0,null,null,null,null,0,0,0,0]
[null,null,null,0,null,null,0,null,0,null,null,null,null,0,0,0,0]
[null,null,null,0,null,null,0,null,0,null,null,null,null,0,0,0,0]
[null,null,null,0,null,null,0,null,0,null,null,null,null,0,0,0,0]
[null,null,null,0,null,null,0,null,0,null,null,null,null,0,0,0,0]
[null,null,null,0,null,null,0,null,0,null,null,null,null,0,0,0,0]
[null,null,null,0,null,null,0,null,0,null,null,null,null,0,0,0,0]
[null,null,null,0,null,null,0,null,0,null,null,null,null,0,0,0,0]
[null,null,null,0,null,null,0,null,0,null,null,null,null,0,0,0,0]
[null,null,null,0,null,null,0,null,0,null,null,null,null,0,0,0,0]
[null,null,null,0,null,null,0,null,0,null,null,null,null,0,0,0,0]
[null,null,null,0,null,null,0,null,0,null,null,null,null,0,0,0,0]
[null,null,null,0,null,null,0,null,0,null,null,null,null,0,0,0,0]
[null,null,null,0,null,null,0,null,0,null,null,null,null,0,0,0,0]
[null,null,null,0,null,null,0,null,0,null,null,null,null,0,0,0,0]
[null,null,null,0,null,null,0,null,0,null,null,null,null,0,0,0,0]
[null,null,null,0,null,null,0,null,0,null,null,null,null,0,0,0,0]
[null,null,null,0,null,null,0,null,0,null,null,null,null,0,0,0,0]
[null,null,null,0,null,null,0,null,0,null,null,null,null,0,0,0,0]
[null,null,null,0,null,null,0,null,0,null,null,null,null,0,0,0,0]
[null,null,null,0,null,null,0,null,0,null,null,null,null,0,0,0,0]
[null,null,null,0,null,null,0,null,0,null,null,null,null,0,0,0,0]
[null,null,null,0,null,null,0,null,0,null,null,null,null,0,0,0,0]
[null,null,null,0,null,null,0,null,0,null,null,null,null,0,0,0,0]
[null,null,null,null,null,null,null,"Celkom:",{"$f":"SUM(I52:I80)","v":0},null,null,null,null,null,"Celkom:",{"$f":"SUM(P52:P80)","v":0},{"$f":"SUM(Q52:Q80)","v":0}]
[]
[]
[null,null,null,null,null,null,"Strana 1:",null,{"$f":"I44","v":75}]
[null,null,null,null,null,null,"Strana 2:",null,{"$f":"I81","v":0}]
[null,null,null,null,null,null,"Stávková:"]
[null,null,null,null,null,null,"Refil:"]
[null,null,null,null,null,null,"Výdavky:"]
[]
[null,null,null,null,null,null,"Celkom spolu:",null,{"$f":"SUM(I84:I88)","v":75}]
[]
[null,"dňa:",{"$f":"TODAY()","v":"2017-02-03"}]

{"sheet":"4","index":6,"n_rows":92,"n_cols":17,"rows_kept":92,"cut":false,"hidden":false,"merged":[[89,6,89,7],[49,16,50,16],[83,6,83,7],[84,6,84,7],[85,6,85,7],[86,6,86,7],[87,6,87,7],[49,7,50,7],[49,8,50,8],[49,12,50,12],[49,13,50,13],[49,14,50,14],[49,15,50,15],[49,1,50,1],[49,2,50,2],[49,3,50,3],[49,4,50,4],[49,5,50,5],[49,6,50,6],[3,12,4,12],[3,13,4,13],[3,14,4,14],[3,15,4,15],[3,16,4,16],[47,1,47,2],[0,2,0,8],[0,12,0,16],[3,1,4,1],[3,2,4,2],[3,3,4,3],[3,4,4,4],[3,5,4,5],[3,6,4,6],[3,7,4,7],[3,8,4,8]]}
[null,null,"Vyučtovanie výčapu",null,null,null,null,null,null,null,null,null,"Denný sumár"]
[]
[]
[null,"P.Č.","Názov  tovaru","Poč. stav","Príjem","Predané","Zostatok","Cena €","Suma celkom €",null,null,null,"Nákup","Predaj","Tržba","Zisk","Zisk po zdanení"]
[]
[null,null,"aaaaaaaaaaaaa",45,null,null,9,null,15,null,null,null,null,{"$f":"H6","v":0},{"$f":"G6*H6","v":0},{"$f":"(N6-M6)*G6","v":0},{"$f":"P6*0.8","v":0}]
[null,null,"ssssssssss",45,null,null,9,null,15,null,null,null,null,{"$f":"H7","v":0},{"$f":"G7*H7","v":0},{"$f":"(N7-M7)*G7","v":0},{"$f":"P7*0.8","v":0}]
[null,null,"xxxxxxxxxxxxx",45,null,null,9,null,15,null,null,null,null,0,0,0,0]
[null,null,"eeeeeeeeeeeeee",45,null,null,9,null,15,null,null,null,null,0,0,0,0]
[null,null,"wwwwwwwwwww",45,null,null,9,null,15,null,null,null,null,0,0,0,0]
[null,null,null,0,null,null,{"$f":"D11+E11-F11","v":0},null,{"$f":"G11*H11","v":0},null,null,null,null,0,0,0,0]
[null,null,null,0,null,null,0,null,0,null,null,null,null,0,0,0,0]
[null,null,null,0,null,null,0,null,0,null,null,null,null,0,0,0,0]
[null,null,null,0,null,null,0,null,0,null,null,null,null,0,0,0,0]
[null,null,null,0,null,null,0,null,0,null,null,null,null,0,0,0,0]
[null,null,null,0,null,null,0,null,0,null,null,null,null,0,0,0,0]
[null,null,null,0,null,null,0,null,0,null,null,null,null,0,0,0,0]
[null,null,null,0,null,null,0,null,0,null,null,null,null,0,0,0,0]
[null,null,null,0,null,null,0,null,0,null,null,null,null,0,0,0,0]
[null,null,null,0,null,null,0,null,0,null,null,null,null,0,0,0,0]
[null,null,null,0,null,null,0,null,0,null,null,null,null,0,0,0,0]
[null,null,null,0,null,null,0,null,0,null,null,null,null,0,0,0,0]
[null,null,null,0,null,null,0,null,0,null,null,null,null,0,0,0,0]
[null,null,null,0,null,null,0,null,0,null,null,null,null,0,0,0,0]
[null,null,null,0,null,null,0,null,0,null,null,null,null,0,0,0,0]
[null,null,null,0,null,null,0,null,0,null,null,null,null,0,0,0,0]
[null,null,null,0,null,null,0,null,0,null,null,null,null,0,0,0,0]
[null,null,null,0,null,null,0,null,0,null,null,null,null,0,0,0,0]
[null,null,null,0,null,null,0,null,0,null,null,null,null,0,0,0,0]
[null,null,null,0,null,null,0,null,0,null,null,null,null,0,0,0,0]
[null,null,null,0,null,null,0,null,0,null,null,null,null,0,0,0,0]
[null,null,null,0,null,null,0,null,0,null,null,null,null,0,0,0,0]
[null,null,null,0,null,null,0,null,0,null,null,null,null,0,0,0,0]
[null,null,null,0,null,null,0,null,0,null,null,null,null,0,0,0,0]
[null,null,null,0,null,null,0,null,0,null,null,null,null,0,0,0,0]
[null,null,null,0,null,null,0,null,0,null,null,null,null,0,0,0,0]
[null,null,null,0,null,null,0,null,0,null,null,null,null,0,0,0,0]
[null,null,null,0,null,null,0,null,0,null,null,null,null,0,0,0,0]
[null,null,null,0,null,null,0,null,0,null,null,null,null,0,0,0,0]
[null,null,null,0,null,null,0,null,0,null,null,null,null,0,0,0,0]
[null,null,null,0,null,null,0,null,0,null,null,null,null,0,0,0,0]
[null,null,null,0,null,null,0,null,0,null,null,null,null,0,0,0,0]
[null,null,null,0,null,null,0,null,0,null,null,null,null,0,0,0,0]
[null,null,null,null,null,null,null,"Celkom:",{"$f":"SUM(I6:I43)","v":75},null,null,null,null,null,"Celkom:",{"$f":"SUM(P6:P43)","v":0},{"$f":"SUM(Q6:Q43)","v":0}]
[]
[null,"dňa:",{"$f":"TODAY()","v":"2017-02-03"}]
[]
[null,{"$f":"B2","v":0},null,null,null,null,{"$f":"G2","v":0}]
[]
[null,"P.Č.","Názov  tovaru","Poč. stav","Príjem","Predané","Zostatok","Cena €","Suma celkom €",null,null,null,"Nákup","Predaj","Tržba","Zisk","Zisk po zdanení"]
[]
[null,null,null,0,null,null,{"$f":"D52+E52-F52","v":0},null,{"$f":"G52*H52","v":0},null,null,null,null,{"$f":"H52","v":0},{"$f":"G52*H52","v":0},{"$f":"(N52-M52)*G52","v":0},{"$f":"P52*0.8","v":0}]
[null,null,null,0,null,null,{"$f":"D53+E53-F53","v":0},null,{"$f":"G53*H53","v":0},null,null,null,null,{"$f":"H53","v":0},{"$f":"G53*H53","v":0},{"$f":"(N53-M53)*G53","v":0},{"$f":"P53*0.8","v":0}]
[null,null,null,0,null,null,0,null,0,null,null,null,null,0,0,0,0]
[null,null,null,0,null,null,0,null,0,null,null,null,null,0,0,0,0]
[null,null,null,0,null,null,0,null,0,null,null,null,null,0,0,0,0]
[null,null,null,0,null,null,0,null,0,null,null,null,null,0,0,0,0]
[null,null,null,0,null,null,0,null,0,null,null,null,null,0,0,0,0]
[null,null,null,0,null,null,0,null,0,null,null,null,null,0,0,0,0]
[null,null,null,0,null,null,0,null,0,null,null,null,null,0,0,0,0]
[null,null,null,0,null,null,0,null,0,null,null,null,null,0,0,0,0]
[null,null,null,0,null,null,0,null,0,null,null,null,null,0,0,0,0]
[null,null,null,0,null,null,0,null,0,null,null,null,null,0,0,0,0]
[null,null,null,0,null,null,0,null,0,null,null,null,null,0,0,0,0]
[null,null,null,0,null,null,0,null,0,null,null,null,null,0,0,0,0]
[null,null,null,0,null,null,0,null,0,null,null,null,null,0,0,0,0]
[null,null,null,0,null,null,0,null,0,null,null,null,null,0,0,0,0]
[null,null,null,0,null,null,0,null,0,null,null,null,null,0,0,0,0]
[null,null,null,0,null,null,0,null,0,null,null,null,null,0,0,0,0]
[null,null,null,0,null,null,0,null,0,null,null,null,null,0,0,0,0]
[null,null,null,0,null,null,0,null,0,null,null,null,null,0,0,0,0]
[null,null,null,0,null,null,0,null,0,null,null,null,null,0,0,0,0]
[null,null,null,0,null,null,0,null,0,null,null,null,null,0,0,0,0]
[null,null,null,0,null,null,0,null,0,null,null,null,null,0,0,0,0]
[null,null,null,0,null,null,0,null,0,null,null,null,null,0,0,0,0]
[null,null,null,0,null,null,0,null,0,null,null,null,null,0,0,0,0]
[null,null,null,0,null,null,0,null,0,null,null,null,null,0,0,0,0]
[null,null,null,0,null,null,0,null,0,null,null,null,null,0,0,0,0]
[null,null,null,0,null,null,0,null,0,null,null,null,null,0,0,0,0]
[null,null,null,0,null,null,0,null,0,null,null,null,null,0,0,0,0]
[null,null,null,null,null,null,null,"Celkom:",{"$f":"SUM(I52:I80)","v":0},null,null,null,null,null,"Celkom:",{"$f":"SUM(P52:P80)","v":0},{"$f":"SUM(Q52:Q80)","v":0}]
[]
[]
[null,null,null,null,null,null,"Strana 1:",null,{"$f":"I44","v":75}]
[null,null,null,null,null,null,"Strana 2:",null,{"$f":"I81","v":0}]
[null,null,null,null,null,null,"Stávková:"]
[null,null,null,null,null,null,"Refil:"]
[null,null,null,null,null,null,"Výdavky:"]
[]
[null,null,null,null,null,null,"Celkom spolu:",null,{"$f":"SUM(I84:I88)","v":75}]
[]
[null,"dňa:",{"$f":"TODAY()","v":"2017-02-03"}]

{"sheet":"5","index":7,"n_rows":92,"n_cols":17,"rows_kept":92,"cut":false,"hidden":false,"merged":[[89,6,89,7],[49,16,50,16],[83,6,83,7],[84,6,84,7],[85,6,85,7],[86,6,86,7],[87,6,87,7],[49,7,50,7],[49,8,50,8],[49,12,50,12],[49,13,50,13],[49,14,50,14],[49,15,50,15],[49,1,50,1],[49,2,50,2],[49,3,50,3],[49,4,50,4],[49,5,50,5],[49,6,50,6],[3,12,4,12],[3,13,4,13],[3,14,4,14],[3,15,4,15],[3,16,4,16],[47,1,47,2],[0,2,0,8],[0,12,0,16],[3,1,4,1],[3,2,4,2],[3,3,4,3],[3,4,4,4],[3,5,4,5],[3,6,4,6],[3,7,4,7],[3,8,4,8]]}
[null,null,"Vyučtovanie výčapu",null,null,null,null,null,null,null,null,null,"Denný sumár"]
[]
[]
[null,"P.Č.","Názov  tovaru","Poč. stav","Príjem","Predané","Zostatok","Cena €","Suma celkom €",null,null,null,"Nákup","Predaj","Tržba","Zisk","Zisk po zdanení"]
[]
[null,null,"aaaaaaaaaaaaa",9,null,null,1,null,15,null,null,null,null,{"$f":"H6","v":0},{"$f":"G6*H6","v":0},{"$f":"(N6-M6)*G6","v":0},{"$f":"P6*0.8","v":0}]
[null,null,"ssssssssss",9,null,null,1,null,15,null,null,null,null,{"$f":"H7","v":0},{"$f":"G7*H7","v":0},{"$f":"(N7-M7)*G7","v":0},{"$f":"P7*0.8","v":0}]
[null,null,"xxxxxxxxxxxxx",9,null,null,1,null,15,null,null,null,null,0,0,0,0]
[null,null,"eeeeeeeeeeeeee",9,null,null,1,null,15,null,null,null,null,0,0,0,0]
[null,null,"wwwwwwwwwww",9,null,null,1,null,15,null,null,null,null,0,0,0,0]
[null,null,null,0,null,null,{"$f":"D11+E11-F11","v":0},null,{"$f":"G11*H11","v":0},null,null,null,null,0,0,0,0]
[null,null,null,0,null,null,0,null,0,null,null,null,null,0,0,0,0]
[null,null,null,0,null,null,0,null,0,null,null,null,null,0,0,0,0]
[null,null,null,0,null,null,0,null,0,null,null,null,null,0,0,0,0]
[null,null,null,0,null,null,0,null,0,null,null,null,null,0,0,0,0]
[null,null,null,0,null,null,0,null,0,null,null,null,null,0,0,0,0]
[null,null,null,0,null,null,0,null,0,null,null,null,null,0,0,0,0]
[null,null,null,0,null,null,0,null,0,null,null,null,null,0,0,0,0]
[null,null,null,0,null,null,0,null,0,null,null,null,null,0,0,0,0]
[null,null,null,0,null,null,0,null,0,null,null,null,null,0,0,0,0]
[null,null,null,0,null,null,0,null,0,null,null,null,null,0,0,0,0]
[null,null,null,0,null,null,0,null,0,null,null,null,null,0,0,0,0]
[null,null,null,0,null,null,0,null,0,null,null,null,null,0,0,0,0]
[null,null,null,0,null,null,0,null,0,null,null,null,null,0,0,0,0]
[null,null,null,0,null,null,0,null,0,null,null,null,null,0,0,0,0]
[null,null,null,0,null,null,0,null,0,null,null,null,null,0,0,0,0]
[null,null,null,0,null,null,0,null,0,null,null,null,null,0,0,0,0]
[null,null,null,0,null,null,0,null,0,null,null,null,null,0,0,0,0]
[null,null,null,0,null,null,0,null,0,null,null,null,null,0,0,0,0]
[null,null,null,0,null,null,0,null,0,null,null,null,null,0,0,0,0]
[null,null,null,0,null,null,0,null,0,null,null,null,null,0,0,0,0]
[null,null,null,0,null,null,0,null,0,null,null,null,null,0,0,0,0]
[null,null,null,0,null,null,0,null,0,null,null,null,null,0,0,0,0]
[null,null,null,0,null,null,0,null,0,null,null,null,null,0,0,0,0]
[null,null,null,0,null,null,0,null,0,null,null,null,null,0,0,0,0]
[null,null,null,0,null,null,0,null,0,null,null,null,null,0,0,0,0]
[null,null,null,0,null,null,0,null,0,null,null,null,null,0,0,0,0]
[null,null,null,0,null,null,0,null,0,null,null,null,null,0,0,0,0]
[null,null,null,0,null,null,0,null,0,null,null,null,null,0,0,0,0]
[null,null,null,0,null,null,0,null,0,null,null,null,null,0,0,0,0]
[null,null,null,0,null,null,0,null,0,null,null,null,null,0,0,0,0]
[null,null,null,0,null,null,0,null,0,null,null,null,null,0,0,0,0]
[null,null,null,0,null,null,0,null,0,null,null,null,null,0,0,0,0]
[null,null,null,null,null,null,null,"Celkom:",{"$f":"SUM(I6:I43)","v":75},null,null,null,null,null,"Celkom:",{"$f":"SUM(P6:P43)","v":0},{"$f":"SUM(Q6:Q43)","v":0}]
[]
[null,"dňa:",{"$f":"TODAY()","v":"2017-02-03"}]
[]
[null,{"$f":"B2","v":0},null,null,null,null,{"$f":"G2","v":0}]
[]
[null,"P.Č.","Názov  tovaru","Poč. stav","Príjem","Predané","Zostatok","Cena €","Suma celkom €",null,null,null,"Nákup","Predaj","Tržba","Zisk","Zisk po zdanení"]
[]
[null,null,null,0,null,null,{"$f":"D52+E52-F52","v":0},null,{"$f":"G52*H52","v":0},null,null,null,null,{"$f":"H52","v":0},{"$f":"G52*H52","v":0},{"$f":"(N52-M52)*G52","v":0},{"$f":"P52*0.8","v":0}]
[null,null,null,0,null,null,{"$f":"D53+E53-F53","v":0},null,{"$f":"G53*H53","v":0},null,null,null,null,{"$f":"H53","v":0},{"$f":"G53*H53","v":0},{"$f":"(N53-M53)*G53","v":0},{"$f":"P53*0.8","v":0}]
[null,null,null,0,null,null,0,null,0,null,null,null,null,0,0,0,0]
[null,null,null,0,null,null,0,null,0,null,null,null,null,0,0,0,0]
[null,null,null,0,null,null,0,null,0,null,null,null,null,0,0,0,0]
[null,null,null,0,null,null,0,null,0,null,null,null,null,0,0,0,0]
[null,null,null,0,null,null,0,null,0,null,null,null,null,0,0,0,0]
[null,null,null,0,null,null,0,null,0,null,null,null,null,0,0,0,0]
[null,null,null,0,null,null,0,null,0,null,null,null,null,0,0,0,0]
[null,null,null,0,null,null,0,null,0,null,null,null,null,0,0,0,0]
[null,null,null,0,null,null,0,null,0,null,null,null,null,0,0,0,0]
[null,null,null,0,null,null,0,null,0,null,null,null,null,0,0,0,0]
[null,null,null,0,null,null,0,null,0,null,null,null,null,0,0,0,0]
[null,null,null,0,null,null,0,null,0,null,null,null,null,0,0,0,0]
[null,null,null,0,null,null,0,null,0,null,null,null,null,0,0,0,0]
[null,null,null,0,null,null,0,null,0,null,null,null,null,0,0,0,0]
[null,null,null,0,null,null,0,null,0,null,null,null,null,0,0,0,0]
[null,null,null,0,null,null,0,null,0,null,null,null,null,0,0,0,0]
[null,null,null,0,null,null,0,null,0,null,null,null,null,0,0,0,0]
[null,null,null,0,null,null,0,null,0,null,null,null,null,0,0,0,0]
[null,null,null,0,null,null,0,null,0,null,null,null,null,0,0,0,0]
[null,null,null,0,null,null,0,null,0,null,null,null,null,0,0,0,0]
[null,null,null,0,null,null,0,null,0,null,null,null,null,0,0,0,0]
[null,null,null,0,null,null,0,null,0,null,null,null,null,0,0,0,0]
[null,null,null,0,null,null,0,null,0,null,null,null,null,0,0,0,0]
[null,null,null,0,null,null,0,null,0,null,null,null,null,0,0,0,0]
[null,null,null,0,null,null,0,null,0,null,null,null,null,0,0,0,0]
[null,null,null,0,null,null,0,null,0,null,null,null,null,0,0,0,0]
[null,null,null,0,null,null,0,null,0,null,null,null,null,0,0,0,0]
[null,null,null,null,null,null,null,"Celkom:",{"$f":"SUM(I52:I80)","v":0},null,null,null,null,null,"Celkom:",{"$f":"SUM(P52:P80)","v":0},{"$f":"SUM(Q52:Q80)","v":0}]
[]
[]
[null,null,null,null,null,null,"Strana 1:",null,{"$f":"I44","v":75}]
[null,null,null,null,null,null,"Strana 2:",null,{"$f":"I81","v":0}]
[null,null,null,null,null,null,"Stávková:"]
[null,null,null,null,null,null,"Refil:"]
[null,null,null,null,null,null,"Výdavky:"]
[]
[null,null,null,null,null,null,"Celkom spolu:",null,{"$f":"SUM(I84:I88)","v":75}]
[]
[null,"dňa:",{"$f":"TODAY()","v":"2017-02-03"}]

{"sheet":"6","index":8,"n_rows":92,"n_cols":17,"rows_kept":92,"cut":false,"hidden":false,"merged":[[89,6,89,7],[49,16,50,16],[83,6,83,7],[84,6,84,7],[85,6,85,7],[86,6,86,7],[87,6,87,7],[49,7,50,7],[49,8,50,8],[49,12,50,12],[49,13,50,13],[49,14,50,14],[49,15,50,15],[49,1,50,1],[49,2,50,2],[49,3,50,3],[49,4,50,4],[49,5,50,5],[49,6,50,6],[3,12,4,12],[3,13,4,13],[3,14,4,14],[3,15,4,15],[3,16,4,16],[47,1,47,2],[0,2,0,8],[0,12,0,16],[3,1,4,1],[3,2,4,2],[3,3,4,3],[3,4,4,4],[3,5,4,5],[3,6,4,6],[3,7,4,7],[3,8,4,8]]}
[null,null,"Vyučtovanie výčapu",null,null,null,null,null,null,null,null,null,"Denný sumár"]
[]
[]
[null,"P.Č.","Názov  tovaru","Poč. stav","Príjem","Predané","Zostatok","Cena €","Suma celkom €",null,null,null,"Nákup","Predaj","Tržba","Zisk","Zisk po zdanení"]
[]
[null,null,"aaaaaaaaaaaaa",1,null,null,3,null,15,null,null,null,null,{"$f":"H6","v":0},{"$f":"G6*H6","v":0},{"$f":"(N6-M6)*G6","v":0},{"$f":"P6*0.8","v":0}]
[null,null,"ssssssssss",1,null,null,3,null,15,null,null,null,null,{"$f":"H7","v":0},{"$f":"G7*H7","v":0},{"$f":"(N7-M7)*G7","v":0},{"$f":"P7*0.8","v":0}]
[null,null,"xxxxxxxxxxxxx",1,null,null,3,null,15,null,null,null,null,0,0,0,0]
[null,null,"eeeeeeeeeeeeee",1,null,null,3,null,15,null,null,null,null,0,0,0,0]
[null,null,"wwwwwwwwwww",1,null,null,3,null,15,null,null,null,null,0,0,0,0]
[null,null,null,0,null,null,{"$f":"D11+E11-F11","v":0},null,{"$f":"G11*H11","v":0},null,null,null,null,0,0,0,0]
[null,null,null,0,null,null,0,null,0,null,null,null,null,0,0,0,0]
[null,null,null,0,null,null,0,null,0,null,null,null,null,0,0,0,0]
[null,null,null,0,null,null,0,null,0,null,null,null,null,0,0,0,0]
[null,null,null,0,null,null,0,null,0,null,null,null,null,0,0,0,0]
[null,null,null,0,null,null,0,null,0,null,null,null,null,0,0,0,0]
[null,null,null,0,null,null,0,null,0,null,null,null,null,0,0,0,0]
[null,null,null,0,null,null,0,null,0,null,null,null,null,0,0,0,0]
[null,null,null,0,null,null,0,null,0,null,null,null,null,0,0,0,0]
[null,null,null,0,null,null,0,null,0,null,null,null,null,0,0,0,0]
[null,null,null,0,null,null,0,null,0,null,null,null,null,0,0,0,0]
[null,null,null,0,null,null,0,null,0,null,null,null,null,0,0,0,0]
[null,null,null,0,null,null,0,null,0,null,null,null,null,0,0,0,0]
[null,null,null,0,null,null,0,null,0,null,null,null,null,0,0,0,0]
[null,null,null,0,null,null,0,null,0,null,null,null,null,0,0,0,0]
[null,null,null,0,null,null,0,null,0,null,null,null,null,0,0,0,0]
[null,null,null,0,null,null,0,null,0,null,null,null,null,0,0,0,0]
[null,null,null,0,null,null,0,null,0,null,null,null,null,0,0,0,0]
[null,null,null,0,null,null,0,null,0,null,null,null,null,0,0,0,0]
[null,null,null,0,null,null,0,null,0,null,null,null,null,0,0,0,0]
[null,null,null,0,null,null,0,null,0,null,null,null,null,0,0,0,0]
[null,null,null,0,null,null,0,null,0,null,null,null,null,0,0,0,0]
[null,null,null,0,null,null,0,null,0,null,null,null,null,0,0,0,0]
[null,null,null,0,null,null,0,null,0,null,null,null,null,0,0,0,0]
[null,null,null,0,null,null,0,null,0,null,null,null,null,0,0,0,0]
[null,null,null,0,null,null,0,null,0,null,null,null,null,0,0,0,0]
[null,null,null,0,null,null,0,null,0,null,null,null,null,0,0,0,0]
[null,null,null,0,null,null,0,null,0,null,null,null,null,0,0,0,0]
[null,null,null,0,null,null,0,null,0,null,null,null,null,0,0,0,0]
[null,null,null,0,null,null,0,null,0,null,null,null,null,0,0,0,0]
[null,null,null,0,null,null,0,null,0,null,null,null,null,0,0,0,0]
[null,null,null,0,null,null,0,null,0,null,null,null,null,0,0,0,0]
[null,null,null,0,null,null,0,null,0,null,null,null,null,0,0,0,0]
[null,null,null,null,null,null,null,"Celkom:",{"$f":"SUM(I6:I43)","v":75},null,null,null,null,null,"Celkom:",{"$f":"SUM(P6:P43)","v":0},{"$f":"SUM(Q6:Q43)","v":0}]
[]
[null,"dňa:",{"$f":"TODAY()","v":"2017-02-03"}]
[]
[null,{"$f":"B2","v":0},null,null,null,null,{"$f":"G2","v":0}]
[]
[null,"P.Č.","Názov  tovaru","Poč. stav","Príjem","Predané","Zostatok","Cena €","Suma celkom €",null,null,null,"Nákup","Predaj","Tržba","Zisk","Zisk po zdanení"]
[]
[null,null,null,0,null,null,{"$f":"D52+E52-F52","v":0},null,{"$f":"G52*H52","v":0},null,null,null,null,{"$f":"H52","v":0},{"$f":"G52*H52","v":0},{"$f":"(N52-M52)*G52","v":0},{"$f":"P52*0.8","v":0}]
[null,null,null,0,null,null,{"$f":"D53+E53-F53","v":0},null,{"$f":"G53*H53","v":0},null,null,null,null,{"$f":"H53","v":0},{"$f":"G53*H53","v":0},{"$f":"(N53-M53)*G53","v":0},{"$f":"P53*0.8","v":0}]
[null,null,null,0,null,null,0,null,0,null,null,null,null,0,0,0,0]
[null,null,null,0,null,null,0,null,0,null,null,null,null,0,0,0,0]
[null,null,null,0,null,null,0,null,0,null,null,null,null,0,0,0,0]
[null,null,null,0,null,null,0,null,0,null,null,null,null,0,0,0,0]
[null,null,null,0,null,null,0,null,0,null,null,null,null,0,0,0,0]
[null,null,null,0,null,null,0,null,0,null,null,null,null,0,0,0,0]
[null,null,null,0,null,null,0,null,0,null,null,null,null,0,0,0,0]
[null,null,null,0,null,null,0,null,0,null,null,null,null,0,0,0,0]
[null,null,null,0,null,null,0,null,0,null,null,null,null,0,0,0,0]
[null,null,null,0,null,null,0,null,0,null,null,null,null,0,0,0,0]
[null,null,null,0,null,null,0,null,0,null,null,null,null,0,0,0,0]
[null,null,null,0,null,null,0,null,0,null,null,null,null,0,0,0,0]
[null,null,null,0,null,null,0,null,0,null,null,null,null,0,0,0,0]
[null,null,null,0,null,null,0,null,0,null,null,null,null,0,0,0,0]
[null,null,null,0,null,null,0,null,0,null,null,null,null,0,0,0,0]
[null,null,null,0,null,null,0,null,0,null,null,null,null,0,0,0,0]
[null,null,null,0,null,null,0,null,0,null,null,null,null,0,0,0,0]
[null,null,null,0,null,null,0,null,0,null,null,null,null,0,0,0,0]
[null,null,null,0,null,null,0,null,0,null,null,null,null,0,0,0,0]
[null,null,null,0,null,null,0,null,0,null,null,null,null,0,0,0,0]
[null,null,null,0,null,null,0,null,0,null,null,null,null,0,0,0,0]
[null,null,null,0,null,null,0,null,0,null,null,null,null,0,0,0,0]
[null,null,null,0,null,null,0,null,0,null,null,null,null,0,0,0,0]
[null,null,null,0,null,null,0,null,0,null,null,null,null,0,0,0,0]
[null,null,null,0,null,null,0,null,0,null,null,null,null,0,0,0,0]
[null,null,null,0,null,null,0,null,0,null,null,null,null,0,0,0,0]
[null,null,null,0,null,null,0,null,0,null,null,null,null,0,0,0,0]
[null,null,null,null,null,null,null,"Celkom:",{"$f":"SUM(I52:I80)","v":0},null,null,null,null,null,"Celkom:",{"$f":"SUM(P52:P80)","v":0},{"$f":"SUM(Q52:Q80)","v":0}]
[]
[]
[null,null,null,null,null,null,"Strana 1:",null,{"$f":"I44","v":75}]
[null,null,null,null,null,null,"Strana 2:",null,{"$f":"I81","v":0}]
[null,null,null,null,null,null,"Stávková:"]
[null,null,null,null,null,null,"Refil:"]
[null,null,null,null,null,null,"Výdavky:"]
[]
[null,null,null,null,null,null,"Celkom spolu:",null,{"$f":"SUM(I84:I88)","v":75}]
[]
[null,"dňa:",{"$f":"TODAY()","v":"2017-02-03"}]

{"sheet":"7","index":9,"n_rows":92,"n_cols":17,"rows_kept":92,"cut":false,"hidden":false,"merged":[[89,6,89,7],[49,16,50,16],[83,6,83,7],[84,6,84,7],[85,6,85,7],[86,6,86,7],[87,6,87,7],[49,7,50,7],[49,8,50,8],[49,12,50,12],[49,13,50,13],[49,14,50,14],[49,15,50,15],[49,1,50,1],[49,2,50,2],[49,3,50,3],[49,4,50,4],[49,5,50,5],[49,6,50,6],[3,12,4,12],[3,13,4,13],[3,14,4,14],[3,15,4,15],[3,16,4,16],[47,1,47,2],[0,2,0,8],[0,12,0,16],[3,1,4,1],[3,2,4,2],[3,3,4,3],[3,4,4,4],[3,5,4,5],[3,6,4,6],[3,7,4,7],[3,8,4,8]]}
[null,null,"Vyučtovanie výčapu",null,null,null,null,null,null,null,null,null,"Denný sumár"]
[]
[]
[null,"P.Č.","Názov  tovaru","Poč. stav","Príjem","Predané","Zostatok","Cena €","Suma celkom €",null,null,null,"Nákup","Predaj","Tržba","Zisk","Zisk po zdanení"]
[]
[null,null,"aaaaaaaaaaaaa",3,null,null,4,null,15,null,null,null,null,{"$f":"H6","v":0},{"$f":"G6*H6","v":0},{"$f":"(N6-M6)*G6","v":0},{"$f":"P6*0.8","v":0}]
[null,null,"ssssssssss",3,null,null,4,null,15,null,null,null,null,{"$f":"H7","v":0},{"$f":"G7*H7","v":0},{"$f":"(N7-M7)*G7","v":0},{"$f":"P7*0.8","v":0}]
[null,null,"xxxxxxxxxxxxx",3,null,null,4,null,15,null,null,null,null,0,0,0,0]
[null,null,"eeeeeeeeeeeeee",3,null,null,4,null,15,null,null,null,null,0,0,0,0]
[null,null,"wwwwwwwwwww",3,null,null,4,null,15,null,null,null,null,0,0,0,0]
[null,null,null,0,null,null,{"$f":"D11+E11-F11","v":0},null,{"$f":"G11*H11","v":0},null,null,null,null,0,0,0,0]
[null,null,null,0,null,null,0,null,0,null,null,null,null,0,0,0,0]
[null,null,null,0,null,null,0,null,0,null,null,null,null,0,0,0,0]
[null,null,null,0,null,null,0,null,0,null,null,null,null,0,0,0,0]
[null,null,null,0,null,null,0,null,0,null,null,null,null,0,0,0,0]
[null,null,null,0,null,null,0,null,0,null,null,null,null,0,0,0,0]
[null,null,null,0,null,null,0,null,0,null,null,null,null,0,0,0,0]
[null,null,null,0,null,null,0,null,0,null,null,null,null,0,0,0,0]
[null,null,null,0,null,null,0,null,0,null,null,null,null,0,0,0,0]
[null,null,null,0,null,null,0,null,0,null,null,null,null,0,0,0,0]
[null,null,null,0,null,null,0,null,0,null,null,null,null,0,0,0,0]
[null,null,null,0,null,null,0,null,0,null,null,null,null,0,0,0,0]
[null,null,null,0,null,null,0,null,0,null,null,null,null,0,0,0,0]
[null,null,null,0,null,null,0,null,0,null,null,null,null,0,0,0,0]
[null,null,null,0,null,null,0,null,0,null,null,null,null,0,0,0,0]
[null,null,null,0,null,null,0,null,0,null,null,null,null,0,0,0,0]
[null,null,null,0,null,null,0,null,0,null,null,null,null,0,0,0,0]
[null,null,null,0,null,null,0,null,0,null,null,null,null,0,0,0,0]
[null,null,null,0,null,null,0,null,0,null,null,null,null,0,0,0,0]
[null,null,null,0,null,null,0,null,0,null,null,null,null,0,0,0,0]
[null,null,null,0,null,null,0,null,0,null,null,null,null,0,0,0,0]
[null,null,null,0,null,null,0,null,0,null,null,null,null,0,0,0,0]
[null,null,null,0,null,null,0,null,0,null,null,null,null,0,0,0,0]
[null,null,null,0,null,null,0,null,0,null,null,null,null,0,0,0,0]
[null,null,null,0,null,null,0,null,0,null,null,null,null,0,0,0,0]
[null,null,null,0,null,null,0,null,0,null,null,null,null,0,0,0,0]
[null,null,null,0,null,null,0,null,0,null,null,null,null,0,0,0,0]
[null,null,null,0,null,null,0,null,0,null,null,null,null,0,0,0,0]
[null,null,null,0,null,null,0,null,0,null,null,null,null,0,0,0,0]
[null,null,null,0,null,null,0,null,0,null,null,null,null,0,0,0,0]
[null,null,null,0,null,null,0,null,0,null,null,null,null,0,0,0,0]
[null,null,null,0,null,null,0,null,0,null,null,null,null,0,0,0,0]
[null,null,null,0,null,null,0,null,0,null,null,null,null,0,0,0,0]
[null,null,null,null,null,null,null,"Celkom:",{"$f":"SUM(I6:I43)","v":75},null,null,null,null,null,"Celkom:",{"$f":"SUM(P6:P43)","v":0},{"$f":"SUM(Q6:Q43)","v":0}]
[]
[null,"dňa:",{"$f":"TODAY()","v":"2017-02-03"}]
[]
[null,{"$f":"B2","v":0},null,null,null,null,{"$f":"G2","v":0}]
[]
[null,"P.Č.","Názov  tovaru","Poč. stav","Príjem","Predané","Zostatok","Cena €","Suma celkom €",null,null,null,"Nákup","Predaj","Tržba","Zisk","Zisk po zdanení"]
[]
[null,null,null,0,null,null,{"$f":"D52+E52-F52","v":0},null,{"$f":"G52*H52","v":0},null,null,null,null,{"$f":"H52","v":0},{"$f":"G52*H52","v":0},{"$f":"(N52-M52)*G52","v":0},{"$f":"P52*0.8","v":0}]
[null,null,null,0,null,null,{"$f":"D53+E53-F53","v":0},null,{"$f":"G53*H53","v":0},null,null,null,null,{"$f":"H53","v":0},{"$f":"G53*H53","v":0},{"$f":"(N53-M53)*G53","v":0},{"$f":"P53*0.8","v":0}]
[null,null,null,0,null,null,0,null,0,null,null,null,null,0,0,0,0]
[null,null,null,0,null,null,0,null,0,null,null,null,null,0,0,0,0]
[null,null,null,0,null,null,0,null,0,null,null,null,null,0,0,0,0]
[null,null,null,0,null,null,0,null,0,null,null,null,null,0,0,0,0]
[null,null,null,0,null,null,0,null,0,null,null,null,null,0,0,0,0]
[null,null,null,0,null,null,0,null,0,null,null,null,null,0,0,0,0]
[null,null,null,0,null,null,0,null,0,null,null,null,null,0,0,0,0]
[null,null,null,0,null,null,0,null,0,null,null,null,null,0,0,0,0]
[null,null,null,0,null,null,0,null,0,null,null,null,null,0,0,0,0]
[null,null,null,0,null,null,0,null,0,null,null,null,null,0,0,0,0]
[null,null,null,0,null,null,0,null,0,null,null,null,null,0,0,0,0]
[null,null,null,0,null,null,0,null,0,null,null,null,null,0,0,0,0]
[null,null,null,0,null,null,0,null,0,null,null,null,null,0,0,0,0]
[null,null,null,0,null,null,0,null,0,null,null,null,null,0,0,0,0]
[null,null,null,0,null,null,0,null,0,null,null,null,null,0,0,0,0]
[null,null,null,0,null,null,0,null,0,null,null,null,null,0,0,0,0]
[null,null,null,0,null,null,0,null,0,null,null,null,null,0,0,0,0]
[null,null,null,0,null,null,0,null,0,null,null,null,null,0,0,0,0]
[null,null,null,0,null,null,0,null,0,null,null,null,null,0,0,0,0]
[null,null,null,0,null,null,0,null,0,null,null,null,null,0,0,0,0]
[null,null,null,0,null,null,0,null,0,null,null,null,null,0,0,0,0]
[null,null,null,0,null,null,0,null,0,null,null,null,null,0,0,0,0]
[null,null,null,0,null,null,0,null,0,null,null,null,null,0,0,0,0]
[null,null,null,0,null,null,0,null,0,null,null,null,null,0,0,0,0]
[null,null,null,0,null,null,0,null,0,null,null,null,null,0,0,0,0]
[null,null,null,0,null,null,0,null,0,null,null,null,null,0,0,0,0]
[null,null,null,0,null,null,0,null,0,null,null,null,null,0,0,0,0]
[null,null,null,null,null,null,null,"Celkom:",{"$f":"SUM(I52:I80)","v":0},null,null,null,null,null,"Celkom:",{"$f":"SUM(P52:P80)","v":0},{"$f":"SUM(Q52:Q80)","v":0}]
[]
[]
[null,null,null,null,null,null,"Strana 1:",null,{"$f":"I44","v":75}]
[null,null,null,null,null,null,"Strana 2:",null,{"$f":"I81","v":0}]
[null,null,null,null,null,null,"Stávková:"]
[null,null,null,null,null,null,"Refil:"]
[null,null,null,null,null,null,"Výdavky:"]
[]
[null,null,null,null,null,null,"Celkom spolu:",null,{"$f":"SUM(I84:I88)","v":75}]
[]
[null,"dňa:",{"$f":"TODAY()","v":"2017-02-03"}]